bitfinex/quotes_SOLUSD_20240703
["timestamp","ask_amount","ask_price","bid_price","bid_amount"]
[1720020006293,7.0448,141.95,141.92,45.0]
[1720020006794,20.0,141.99,141.85,15.7705]
[1720020006795,0.17,141.96,141.85,15.7705]
[1720020006995,45.1354933,141.97,141.83,34.325287]
[1720020007202,7.0483,141.88,141.83,41.375587]
[1720020007414,7.0483,141.88,141.84,7.0501]
[1720020008009,7.0479,141.89,141.84,7.0501]
[1720020008223,54.74,141.95,141.83,6.1014]
[1720020008426,7.049,141.87,141.83,13.152]
[1720020009220,7.049,141.87,141.83,7.0506]
[1720020009590,7.0494,141.86,141.81,22.8217]
[1720020009791,18.041,141.9,141.81,22.8217]
[1720020009991,20.17,141.89,141.81,7.0512]
[1720020010197,20.17,141.89,141.8,7.052]
[1720020010617,20.17,141.89,141.81,7.0516]
[1720020010826,7.0495,141.86,141.81,7.0516]
[1720020011420,7.0497,141.85,141.81,7.0516]
[1720020013110,7.0497,141.85,141.82,45.0]
[1720020013307,20.17,141.89,141.82,52.051]
[1720020013631,7.0483,141.88,141.84,7.0501]
[1720020013794,7.0487,141.87,141.85,45.0]
[1720020014322,7.0483,141.88,141.84,45.0]
[1720020014505,7.0488,141.87,141.84,45.0]
[1720020014708,7.0488,141.87,141.83,45.0]
[1720020015229,7.0492,141.86,141.83,45.0]
[1720020016203,7.0488,141.87,141.83,52.0506]
[1720020016511,7.0494,141.86,141.83,45.0]
[1720020016717,7.0494,141.86,141.82,45.0]
[1720020017027,7.0494,141.86,141.82,52.0508]
[1720020017924,7.0497,141.85,141.82,52.0508]
[1720020018129,7.0502,141.84,141.8,7.052]
[1720020019500,7.0499,141.85,141.81,7.0516]
[1720020019934,0.17,141.88,141.82,45.0]
[1720020020130,0.17,141.88,141.81,52.0516]
[1720020020318,20.17,141.89,141.82,7.0509]
[1720020020630,7.0495,141.86,141.83,45.0]
[1720020021231,20.17,141.89,141.84,7.0497]
[1720020021232,7.0486,141.88,141.84,7.0497]
[1720020021431,7.0486,141.88,141.85,45.0]
[1720020021612,20.0,141.89,141.85,45.0]
[1720020021934,27.0477,141.89,141.85,52.0494]
[1720020022124,7.0483,141.88,141.85,45.0]
[1720020023713,20.0,141.89,141.85,45.0]
[1720020023910,7.0487,141.87,141.84,45.0]
[1720020024111,7.0487,141.87,141.84,52.0501]
[1720020024314,22.6377,141.93,141.84,52.0501]
[1720020024315,7.0474,141.9,141.84,45.0]
[1720020024513,22.6377,141.93,141.84,45.0]
[1720020024725,7.048,141.89,141.85,7.0496]
[1720020025026,0.17,141.92,141.86,52.049]
[1720020025417,15.3739,141.94,141.87,1.40943521]
[1720020025624,15.3739,141.94,141.88,7.0477]
[1720020025930,7.047,141.91,141.89,45.0]
[1720020026236,7.0472,141.9,141.89,45.0]
[1720020026407,7.0466,141.92,141.88,45.0]
[1720020027128,18.4329,141.97,141.89,7.0473]
[1720020027325,18.4329,141.97,141.9,52.0472]
[1720020027513,18.4329,141.97,141.91,46.4090593]
[1720020027514,15.7952,141.97,141.91,46.4090593]
[1720020027712,15.7952,141.97,141.88,45.0]
[1720020027713,7.0452,141.94,141.9,7.0468]
[1720020027927,7.045,141.95,141.91,52.48611718]
[1720020028234,9.10198298,142.0,141.92,1.40885783]
[1720020028423,9.10198298,142.0,141.93,1.40884793]
[1720020028424,7.0444,141.96,141.93,1.40884793]
[1720020028627,9.10198298,142.0,141.93,1.40884793]
[1720020029219,7.0462,141.92,141.91,45.0]
[1720020029424,7.0453,141.94,141.91,45.0]
[1720020030021,7.0448,141.95,141.91,45.0]
[1720020030220,7.0442,141.97,141.92,7.0458]
[1720020030427,9.10198298,142.0,141.93,45.0]
[1720020030428,7.0448,141.95,141.93,45.0]
[1720020030940,9.10198298,142.0,141.91,52.0462]
[1720020031117,7.0444,141.96,141.91,52.0462]
[1720020031524,7.0444,141.96,141.92,7.0461]
[1720020031729,7.0444,141.96,141.93,45.0]
[1720020032112,7.0447,141.95,141.93,45.0]
[1720020032433,7.0452,141.94,141.92,45.0]
[1720020032608,7.0443,141.96,141.91,52.0465]
[1720020032811,7.0447,141.95,141.91,52.0466]
[1720020033010,7.0444,141.96,141.91,52.0466]
[1720020033224,7.0449,141.95,141.91,52.0466]
[1720020033426,7.0444,141.96,141.91,52.0466]
[1720020033745,7.0439,141.97,141.92,33.55]
[1720020033913,7.0439,141.97,141.93,45.0]
[1720020034113,7.0439,141.97,141.94,1.40871266]
[1720020034529,7.0443,141.96,141.93,45.0]
[1720020035339,7.0443,141.96,141.91,7.0464]
[1720020035340,7.0457,141.93,141.9,6.2076]
[1720020035514,7.0465,141.92,141.9,6.2076]
[1720020035720,7.0467,141.91,141.9,6.2076]
[1720020036042,7.0467,141.91,141.89,49.4961]
[1720020036043,7.0472,141.9,141.89,15.9461]
[1720020036408,7.0468,141.91,141.89,15.9461]
[1720020036821,0.34,141.99,141.89,15.9461]
[1720020037637,7.0467,141.91,141.9,45.0]
[1720020038331,2.6377,141.97,141.86,39.6086]
[1720020038527,7.0469,141.91,141.86,6.0586]
[1720020038708,7.0458,141.93,141.89,7.0477]
[1720020038910,7.0451,141.95,141.91,7.0466]
[1720020039119,7.0451,141.95,141.87,33.55]
[1720020039120,7.0454,141.94,141.9,7.0469]
[1720020039644,7.0454,141.94,141.91,45.0]
[1720020040427,7.0458,141.93,141.91,45.0]
[1720020040625,7.0458,141.93,141.9,45.0]
[1720020041025,6.63428298,141.99,141.9,45.0]
[1720020041327,7.0458,141.93,141.9,45.0]
[1720020041532,20.17,141.98,141.9,45.0]
[1720020041939,7.0455,141.94,141.9,52.0471]
[1720020042137,7.0448,141.95,141.91,7.0466]
[1720020042330,18.8056,142.01,141.92,52.0458]
[1720020042516,7.045,141.95,141.92,45.0]
[1720020043335,7.0444,141.96,141.92,52.0461]
[1720020044944,7.0447,141.95,141.92,45.0]
[1720020045842,7.0452,141.94,141.92,45.0]
[1720020046439,7.0448,141.95,141.92,45.0]
[1720020046743,7.0452,141.94,141.92,45.0]
[1720020047853,26.1234847,142.01,141.92,45.0]
[1720020047854,7.0448,141.95,141.92,45.0]
[1720020048016,26.1234847,142.01,141.92,45.0]
[1720020048017,7.0452,141.94,141.92,45.0]
[1720020048422,7.0449,141.95,141.92,45.0]
[1720020049532,26.1234847,142.01,141.92,51.0964]
[1720020049743,7.044,141.97,141.93,7.0454]
[1720020049944,7.044,141.97,141.94,45.0]
[1720020051743,7.0442,141.96,141.94,45.0]
[1720020051946,7.0442,141.96,141.93,45.0]
[1720020053164,7.0447,141.95,141.93,45.0]
[1720020053665,7.0443,141.96,141.93,45.0]
[1720020054195,7.0443,141.96,141.93,52.0456]
[1720020054333,20.0,142.0,141.93,45.0]
[1720020054534,7.0452,141.94,141.92,45.0]
[1720020054765,7.0462,141.92,141.91,16.4711]
[1720020055057,7.0462,141.92,141.89,6.1834]
[1720020056535,15.0488,141.99,141.88,15.8747]
[1720020056536,7.0468,141.91,141.88,15.8747]
[1720020056741,7.0473,141.9,141.88,15.8747]
[1720020057244,23.8277,141.98,141.86,6.124]
[1720020057443,7.0479,141.89,141.86,6.124]
[1720020057857,7.0482,141.88,141.86,6.124]
[1720020058066,7.0478,141.89,141.86,6.124]
[1720020058585,7.0478,141.89,141.87,45.0]
[1720020059066,7.0468,141.91,141.87,52.0485]
[1720020059257,40.35428298,141.97,141.87,45.0]
[1720020059443,20.0,141.96,141.87,45.0]
[1720020059642,0.34,141.95,141.87,45.0]
[1720020059844,7.0474,141.9,141.87,45.0]
[1720020060473,7.0468,141.91,141.87,52.0485]
[1720020061078,7.0474,141.9,141.87,45.0]
[1720020061761,7.49080468,141.95,141.87,45.0]
[1720020062079,7.047,141.91,141.87,52.0485]
[1720020062964,20.0,141.94,141.87,45.0]
[1720020063169,20.0,141.95,141.87,45.0]
[1720020063475,7.0463,141.92,141.87,45.0]
[1720020063951,7.0463,141.92,141.88,7.048]
[1720020064153,7.0463,141.92,141.89,45.0]
[1720020064450,20.0,141.96,141.9,7.047]
[1720020064451,7.0457,141.93,141.9,7.047]
[1720020064651,7.0457,141.93,141.91,45.0]
[1720020064859,7.0457,141.93,141.89,52.0475]
[1720020066562,7.0457,141.93,141.89,45.0]
[1720020066864,7.0459,141.93,141.89,52.0476]
[1720020067275,7.0454,141.94,141.9,7.0471]
[1720020067489,15.0488,141.99,141.91,45.0]
[1720020067661,13.77952087,141.98,141.91,45.0]
[1720020067987,13.94952087,141.98,141.91,45.0]
[1720020068175,7.0462,141.92,141.91,45.0]
[1720020070076,7.0457,141.93,141.91,45.0]
[1720020070271,7.0462,141.92,141.91,45.0]
[1720020071971,6.46428298,141.98,141.86,39.674]
[1720020072176,20.34,141.97,141.86,39.674]
[1720020072356,7.0469,141.91,141.87,7.0486]
[1720020072557,7.0473,141.9,141.86,46.723]
[1720020073085,7.0473,141.9,141.87,45.0]
[1720020073777,7.0468,141.91,141.87,52.0485]
[1720020073954,7.0463,141.92,141.88,7.0482]
[1720020074265,7.0467,141.91,141.89,45.0]
[1720020074470,7.0467,141.91,141.87,52.0485]
[1720020075981,7.0467,141.91,141.88,7.0481]
[1720020076165,7.0463,141.92,141.89,45.0]
[1720020077487,7.0467,141.91,141.89,45.0]
[1720020077668,7.0455,141.94,141.9,7.047]
[1720020077874,7.0455,141.94,141.91,45.0]
[1720020078693,7.0454,141.94,141.91,45.0]
[1720020078859,7.0454,141.94,141.91,52.0467]
[1720020079065,7.0449,141.95,141.92,7.0461]
[1720020079258,7.0449,141.95,141.93,45.0]
[1720020079478,7.0449,141.95,141.91,67.6259]
[1720020079990,7.044,141.97,141.91,60.5794]
[1720020080185,6.46428298,142.0,141.92,40.0204]
[1720020080389,7.0437,141.97,141.93,53.45394503]
[1720020081282,7.0443,141.96,141.93,46.40864503]
[1720020082080,7.0443,141.96,141.93,45.0]
[1720020082281,7.0445,141.96,141.93,45.0]
[1720020082498,6.5445,141.96,141.93,45.0]
[1720020084198,6.5445,141.96,141.93,52.0456]
[1720020084388,7.0437,141.97,141.94,7.0452]
[1720020084559,7.0437,141.97,141.95,45.0]
[1720020084964,7.0437,141.97,141.94,45.0]
[1720020085697,7.0427,142.0,141.96,7.0439]
[1720020085894,7.0419,142.01,141.97,52.0437]
[1720020086263,13.071832,142.06,141.97,52.0437]
[1720020086264,7.0409,142.03,141.99,13.5192]
[1720020086462,7.0403,142.04,142.0,52.0421]
[1720020086675,7.0408,142.03,142.0,45.0]
[1720020086876,7.0404,142.04,142.0,52.0422]
[1720020087163,7.0404,142.04,142.01,7.0417]
[1720020087366,7.0399,142.05,142.02,45.0]
[1720020087674,7.0396,142.06,142.02,52.041]
[1720020087875,7.0397,142.05,142.02,45.0]
[1720020088275,29.60576884,142.11,142.03,50.72280613]
[1720020088464,7.0375,142.1,142.06,7.0388]
[1720020088663,7.0375,142.1,142.07,45.0]
[1720020089065,7.0379,142.09,142.06,45.0]
[1720020089479,7.0383,142.08,142.06,45.0]
[1720020089793,7.0383,142.08,142.05,45.0]
[1720020090097,7.0379,142.09,142.05,45.0]
[1720020090599,7.0384,142.08,142.05,45.0]
[1720020091389,0.8515655,142.12,142.05,51.107]
[1720020091893,7.038,142.09,142.05,58.1466]
[1720020092392,7.038,142.09,142.05,51.107]
[1720020092693,7.0383,142.08,142.05,51.107]
[1720020092894,7.0379,142.09,142.05,58.1467]
[1720020093473,7.0379,142.09,142.05,51.107]
[1720020093692,0.8515655,142.12,142.05,51.107]
[1720020093882,7.0384,142.08,142.05,51.107]
[1720020094208,0.8515655,142.12,142.05,51.107]
[1720020094487,7.0379,142.09,142.05,58.1467]
[1720020094693,0.8515655,142.12,142.06,8.40559148]
[1720020094871,7.0373,142.1,142.07,45.0]
[1720020095069,7.0373,142.1,142.08,1.36721277]
[1720020095281,7.8878655,142.12,142.08,8.40511277]
[1720020095492,0.8515655,142.12,142.09,45.0]
[1720020096398,0.8515655,142.12,142.1,1.40703513]
[1720020096577,0.8515655,142.12,142.11,1.4070058]
[1720020097307,0.8515655,142.12,142.11,58.5797]
[1720020097495,15.2802,142.21,142.12,7.0358]
[1720020097800,7.0351,142.15,142.11,58.5792]
[1720020098303,7.0344,142.16,142.12,7.2062]
[1720020098604,21.74448298,142.21,142.13,52.0355]
[1720020098605,7.0337,142.18,142.13,52.0355]
[1720020098774,7.0338,142.17,142.13,45.0]
[1720020098973,7.0338,142.17,142.12,45.17]
[1720020099170,7.0338,142.17,142.13,7.0353]
[1720020099505,7.0333,142.18,142.14,52.0351]
[1720020099692,7.0329,142.19,142.15,7.0347]
[1720020100008,7.0329,142.19,142.16,45.0]
[1720020100376,7.0338,142.17,142.16,45.0]
[1720020100581,7.31711268,142.23,142.16,45.0]
[1720020100796,25.48058298,142.25,142.16,45.0]
[1720020100988,7.0336,142.18,142.16,45.0]
[1720020101188,7.31605648,142.24,142.16,45.0]
[1720020101386,7.0337,142.18,142.16,45.0]
[1720020103592,7.033,142.19,142.16,45.0]
[1720020103908,7.31605648,142.24,142.16,45.0]
[1720020103909,7.0333,142.18,142.16,45.0]
[1720020105505,7.0328,142.19,142.16,45.0]
[1720020106004,7.0325,142.2,142.16,52.0342]
[1720020106788,7.0328,142.19,142.16,45.0]
[1720020106986,7.0333,142.18,142.16,45.0]
[1720020107382,7.0329,142.19,142.16,46.40641648]
[1720020107693,7.0329,142.19,142.16,45.0]
[1720020109096,30.15959642,142.25,142.16,45.0]
[1720020109292,7.0335,142.18,142.16,45.0]
[1720020111482,7.0349,142.15,142.11,29.8013]
[1720020111789,7.0346,142.16,142.12,7.0362]
[1720020112981,30.15959642,142.25,142.13,45.34]
[1720020113186,7.0328,142.19,142.15,7.0346]
[1720020113409,7.0328,142.19,142.16,45.0]
[1720020113609,7.0325,142.2,142.16,52.0342]
[1720020113990,7.0325,142.2,142.17,22.417]
[1720020114188,7.0317,142.22,142.18,53.43958323]
[1720020114493,8.16470064,142.26,142.23,7.0307]
[1720020114696,8.16470064,142.26,142.21,33.55]
[1720020114697,8.16470064,142.26,142.24,53.43554885]
[1720020114903,0.8515655,142.26,142.24,46.40564885]
[1720020115214,0.8515655,142.26,142.24,53.43564885]
[1720020115915,7.3132411,142.35,142.25,86.323]
[1720020116205,7.0263,142.33,142.29,7.0278]
[1720020116383,7.0258,142.34,142.3,45.0]
[1720020116587,53.03488956,142.4,142.3,45.0]
[1720020116800,7.0254,142.34,142.3,45.0]
[1720020116998,7.026,142.33,142.3,45.0]
[1720020117194,7.0245,142.36,142.3,45.0]
[1720020117404,7.0245,142.36,142.31,7.1965]
[1720020117608,7.0245,142.36,142.32,45.0]
[1720020117911,7.0252,142.35,142.3,52.0274]
[1720020118491,7.0252,142.35,142.3,45.0]
[1720020118492,7.0249,142.35,142.3,45.0]
[1720020118725,7.0249,142.35,142.3,52.0273]
[1720020118898,7.0255,142.34,142.3,52.0273]
[1720020119299,7.025,142.35,142.3,52.0273]
[1720020119714,7.024,142.37,142.32,7.0263]
[1720020120019,7.0254,142.35,142.33,45.0]
[1720020120197,7.0254,142.34,142.33,45.0]
[1720020120395,0.8515655,142.4,142.29,33.55]
[1720020120717,0.8515655,142.4,142.29,7.0278]
[1720020120918,7.0255,142.34,142.29,7.0278]
[1720020121217,0.34,142.39,142.27,33.55]
[1720020121518,7.026,142.33,142.28,7.028]
[1720020122214,0.34,142.39,142.28,7.028]
[1720020122519,7.0267,142.32,142.27,40.5788]
[1720020122699,0.34,142.39,142.25,56.323]
[1720020122700,55.06,142.39,142.25,56.323]
[1720020122905,7.0264,142.32,142.25,56.323]
[1720020123116,7.026,142.33,142.29,7.0278]
[1720020123806,7.0264,142.32,142.28,7.0283]
[1720020124112,7.0259,142.33,142.29,53.43299984]
[1720020124319,11.66499587,142.39,142.29,45.0]
[1720020124511,20.0,142.38,142.28,45.0]
[1720020124716,20.0,142.38,142.29,0.17]
[1720020124920,20.0,142.38,142.27,33.55]
[1720020125134,20.0,142.38,142.25,22.773]
[1720020125293,7.0269,142.31,142.25,22.773]
[1720020125490,20.0,142.38,142.26,7.0289]
[1720020125491,7.0278,142.3,142.26,7.0289]
[1720020125708,7.0266,142.32,142.27,7.0285]
[1720020126219,7.0256,142.34,142.3,7.027]
[1720020126420,7.025,142.35,142.31,7.0268]
[1720020126805,7.0255,142.34,142.3,7.0273]
[1720020126999,7.0255,142.34,142.28,33.55]
[1720020127000,0.8515655,142.4,142.31,45.0]
[1720020127207,7.0246,142.36,142.32,0.17]
[1720020127720,7.0249,142.35,142.32,0.17]
[1720020127919,0.8515655,142.4,142.32,33.72]
[1720020128108,7.0237,142.38,142.34,7.025]
[1720020128292,7.0237,142.38,142.35,45.0]
[1720020128493,0.8515655,142.4,142.35,45.0]
[1720020128690,7.024,142.37,142.35,45.0]
[1720020128894,0.8515655,142.4,142.35,60.9923]
[1720020129114,7.8739655,142.4,142.36,7.0242]
[1720020129316,7.8739655,142.4,142.37,46.40438248]
[1720020129495,0.8515655,142.4,142.37,45.0]
[1720020129709,0.8515655,142.4,142.35,15.9923]
[1720020130018,0.8515655,142.4,142.36,0.17]
[1720020130323,7.8741655,142.4,142.36,7.1942]
[1720020130730,0.8515655,142.4,142.35,15.9923]
[1720020131015,7.0235,142.38,142.35,15.9923]
[1720020131311,0.8515655,142.4,142.36,0.17]
[1720020131526,7.8741655,142.4,142.36,7.1943]
[1720020131894,0.8515655,142.4,142.37,7.0238]
[1720020132211,7.8740655,142.4,142.36,7.1943]
[1720020132418,7.023,142.39,142.35,23.017]
[1720020132805,0.8515655,142.4,142.36,7.0244]
[1720020133115,7.0229,142.39,142.35,23.017]
[1720020133508,0.8515655,142.4,142.37,7.0236]
[1720020133705,7.8739655,142.4,142.36,7.0242]
[1720020133900,0.8515655,142.4,142.35,79.5423]
[1720020134097,0.8515655,142.4,142.39,7.0229]
[1720020134297,0.8515655,142.4,142.39,8.59699345]
[1720020134721,0.8515655,142.4,142.39,42.31699345]
[1720020135624,0.8515655,142.4,142.39,42.14699345]
[1720020135798,0.8515655,142.4,142.39,40.7429]
[1720020136114,0.8515655,142.4,142.35,15.9923]
[1720020136717,7.0232,142.39,142.35,15.9923]
[1720020137026,0.8515655,142.4,142.35,15.9923]
[1720020137193,7.023,142.39,142.35,23.0171]
[1720020137718,0.8515655,142.4,142.37,7.0239]
[1720020137901,7.8740655,142.4,142.36,7.0242]
[1720020138100,0.8515655,142.4,142.37,7.0239]
[1720020138325,0.8515655,142.4,142.38,7.0234]
[1720020138496,0.8515655,142.4,142.39,7.0229]
[1720020138909,0.8515655,142.4,142.39,7.1929]
[1720020140313,0.8515655,142.4,142.39,28.3629]
[1720020140622,0.8515655,142.4,142.39,28.5329]
[1720020141424,22.55714299,142.52,142.39,63.89]
[1720020141728,20.0,142.51,142.41,27.2236]
[1720020141923,7.019,142.47,142.42,1.57357099]
[1720020142123,7.019,142.47,142.42,0.17]
[1720020142299,7.018,142.5,142.43,15.7339]
[1720020142496,9.94067182,142.54,142.44,0.6116134]
[1720020142497,7.0181,142.49,142.44,0.6116134]
[1720020142825,7.0177,142.5,142.45,1.4034662]
[1720020143000,7.0177,142.5,142.44,21.34]
[1720020143328,7.018,142.49,142.44,0.17]
[1720020143523,7.018,142.49,142.44,0.34]
[1720020143714,0.8515655,142.55,142.44,0.17]
[1720020144255,7.0189,142.48,142.44,0.17]
[1720020144925,0.8515655,142.55,142.44,0.17]
[1720020144926,7.0181,142.49,142.44,0.17]
[1720020145129,0.8515655,142.55,142.44,0.17]
[1720020145303,0.34,142.54,142.43,15.7339]
[1720020145501,33.89,142.54,142.41,6.0536]
[1720020145722,20.0,142.53,142.41,6.0536]
[1720020146010,7.0213,142.43,142.39,22.5924]
[1720020146226,33.89,142.52,142.39,64.9724]
[1720020146522,7.0203,142.45,142.39,86.1424]
[1720020146727,7.0205,142.44,142.39,86.1424]
[1720020146902,7.02,142.45,142.39,86.1424]
[1720020147321,7.02,142.45,142.4,0.34]
[1720020147621,7.0196,142.46,142.4,0.34]
[1720020148025,7.0191,142.47,142.4,0.34]
[1720020148230,0.17,142.52,142.41,1.40373732]
[1720020148538,20.0,142.53,142.42,1.74296485]
[1720020148835,20.8515655,142.55,142.43,1.74345548]
[1720020149129,7.0186,142.48,142.4,0.34]
[1720020149336,7.0181,142.49,142.4,0.34]
[1720020149638,7.0186,142.48,142.4,0.34]
[1720020150038,0.8515655,142.55,142.4,0.34]
[1720020150336,7.0199,142.46,142.4,0.34]
[1720020150534,7.0192,142.47,142.4,0.34]
[1720020151331,7.0185,142.48,142.4,0.34]
[1720020152342,0.8515655,142.55,142.4,0.34]
[1720020152638,7.018,142.49,142.4,0.34]
[1720020152820,20.0,142.48,142.4,0.34]
[1720020153517,7.0185,142.48,142.4,0.34]
[1720020155044,7.0181,142.49,142.4,0.34]
[1720020156835,8.15070719,142.55,142.4,0.34]
[1720020157039,20.0,142.54,142.43,63.55]
[1720020157341,7.0175,142.5,142.44,0.34]
[1720020157511,20.0,142.54,142.44,0.34]
[1720020157715,0.8515655,142.55,142.45,15.0118]
[1720020158020,7.0174,142.51,142.46,0.17]
[1720020158225,7.0175,142.5,142.46,0.17]
[1720020158425,7.0175,142.5,142.45,15.0118]
[1720020158743,7.017,142.52,142.45,78.5618]
[1720020158924,20.0,142.51,142.46,0.34]
[1720020159122,20.0,142.51,142.45,15.0118]
[1720020159345,7.0177,142.5,142.45,15.0118]
[1720020159724,7.0181,142.49,142.45,15.0118]
[1720020159921,7.0219,142.42,142.37,5.43548237]
[1720020160117,18.2579,142.48,142.35,6.3926]
[1720020160118,7.33383853,142.47,142.35,6.3926]
[1720020160322,21.17,142.46,142.35,6.3926]
[1720020160522,27.67383853,142.45,142.35,6.3926]
[1720020160815,7.024,142.37,142.35,6.3926]
[1720020161118,7.0244,142.36,142.35,6.3926]
[1720020161429,7.0241,142.37,142.35,6.3926]
[1720020162150,20.34,142.45,142.35,6.3926]
[1720020162151,7.0235,142.38,142.35,6.3926]
[1720020163122,20.34,142.45,142.35,6.3926]
[1720020163123,7.022,142.41,142.35,6.3926]
[1720020163326,7.0215,142.42,142.38,7.0234]
[1720020163538,7.0215,142.42,142.37,7.0239]
[1720020163844,7.0225,142.4,142.36,7.1943]
[1720020164149,20.0,142.45,142.35,6.3926]
[1720020164452,20.0,142.47,142.35,6.3926]
[1720020164629,7.0223,142.41,142.36,0.17]
[1720020164827,7.0225,142.4,142.36,0.17]
[1720020165047,7.0225,142.4,142.35,6.3926]
[1720020165223,7.022,142.41,142.35,6.3926]
[1720020165428,0.17,142.46,142.35,6.3926]
[1720020165753,7.0244,142.36,142.35,6.3926]
[1720020165926,7.33383853,142.45,142.35,6.3926]
[1720020166128,7.33383853,142.45,142.27,20.0]
[1720020166129,20.34,142.44,142.29,16.6555]
[1720020166329,20.34,142.44,142.3,6.4897]
[1720020166330,27.67383853,142.44,142.3,6.4897]
[1720020166537,27.67383853,142.44,142.33,7.0258]
[1720020166922,27.67383853,142.44,142.34,7.0251]
[1720020167459,27.67383853,142.44,142.33,7.0254]
[1720020167961,34.98091407,142.44,142.33,7.0254]
[1720020168138,34.98091407,142.44,142.32,7.0262]
[1720020168323,34.98091407,142.44,142.31,7.1965]
[1720020168523,7.33383853,142.43,142.31,7.1965]
[1720020168738,20.34,142.42,142.31,7.1965]
[1720020169123,20.34,142.42,142.31,7.0265]
[1720020169547,20.34,142.42,142.32,7.0263]
[1720020170727,20.34,142.42,142.31,7.0268]
[1720020170940,18.8244,142.41,142.3,6.4897]
[1720020171243,20.34,142.4,142.28,7.028]
[1720020171545,27.67383853,142.4,142.28,7.028]
[1720020171938,48.84383853,142.4,142.28,7.0283]
[1720020173241,27.67383853,142.4,142.31,7.0268]
[1720020173563,27.50383853,142.4,142.26,27.7935]
[1720020173860,27.50383853,142.4,142.31,7.0267]
[1720020174057,27.50383853,142.4,142.27,0.34]
[1720020174058,20.0,142.4,142.27,0.34]
[1720020174244,20.0,142.4,142.34,7.0251]
[1720020174766,20.0,142.4,142.35,1.40472418]
[1720020175246,20.0,142.43,142.34,7.0251]
[1720020175652,20.0,142.43,142.35,7.0246]
[1720020175948,20.0,142.43,142.36,7.0242]
[1720020176141,23.10833853,142.44,142.36,7.0242]
[1720020176341,23.10833853,142.44,142.35,7.0247]
[1720020176544,23.10833853,142.44,142.36,7.0244]
[1720020176757,23.10833853,142.44,142.32,27.6587]
[1720020176947,23.10833853,142.44,142.33,0.34]
[1720020177342,7.30606821,142.46,142.39,7.0228]
[1720020177549,16.4716,142.48,142.39,7.0228]
[1720020177861,16.4716,142.48,142.38,0.17]
[1720020178063,16.4716,142.48,142.33,0.34]
[1720020178670,20.0,142.47,142.33,0.34]
[1720020179244,0.17,142.46,142.36,7.024]
[1720020179465,0.34,142.46,142.36,7.024]
[1720020180061,0.34,142.46,142.33,7.3654]
[1720020180264,0.34,142.46,142.33,7.0258]
[1720020180647,0.34,142.46,142.32,6.4887]
[1720020180853,55.41931631,142.45,142.29,13.4168]
[1720020181165,55.41931631,142.45,142.3,7.0273]
[1720020181166,41.34,142.44,142.3,7.0273]
[1720020181338,37.5475,142.42,142.29,6.3893]
[1720020181546,20.34,142.41,142.28,7.0283]
[1720020181851,20.34,142.41,142.29,7.0277]
[1720020182770,41.51,142.41,142.27,7.0283]
[1720020182948,41.51,142.41,142.26,16.1721]
[1720020183258,20.34,142.41,142.29,7.0276]
[1720020183456,20.34,142.41,142.3,1.40499864]
[1720020183865,20.34,142.41,142.31,7.0265]
[1720020184057,20.34,142.41,142.32,7.0261]